fUSD/lending_fUSD_20241024
["ID","MTS","AMOUNT","RATE_DAILY","PERIOD"]
[340738274,1729759846175,-6427.174,0.0006414,2]
[340738275,1729759846184,-56449.28568679,0.0006414,2]
[340738276,1729759846195,-32274.10560184,0.0006414,2]
[340738277,1729759846206,-11276.60871137,0.0006414,2]
[340738278,1729759846215,-500.0,0.0006414,2]
[340738279,1729759846352,-500.0,0.00064239,120]
[340738280,1729759846361,-514.37,0.00064239,120]
[340738281,1729759846374,-500.0,0.00064239,120]
[340738282,1729759846383,-523.25,0.00064239,120]
[340738283,1729759846392,-500.0,0.00064239,120]
[340738284,1729759846401,-300.0,0.00064366,2]
[340738285,1729759846410,-500.0,0.0006442,120]
[340738286,1729759846420,-514.37,0.0006442,120]
[340738287,1729759846430,-523.25,0.0006442,120]
[340738288,1729759846439,-500.0,0.0006442,120]
[340738289,1729759846448,-500.0,0.00064429,120]
[340738290,1729759846457,-241.5855076,0.00064439,120]
[340738291,1729759846466,-514.37,0.00064439,120]
[340738292,1729759846479,-500.0,0.00064439,120]
[340738293,1729759846489,-523.25,0.00064439,120]
[340738294,1729759846498,-500.0,0.00064439,120]
[340738295,1729759846507,-290.31,0.0006446,2]
[340738296,1729759846516,-1261.3604,0.0006449,2]
[340738297,1729759846526,-10415.7604,0.0006449,2]
[340738298,1729759846535,-155.73,0.00064518,2]
[340738299,1729759846543,-713.64,0.0006458,30]
[340738300,1729759846552,-7666.55495102,0.0006459,2]
[340738301,1729759846564,-16233.44504898,0.0006459,2]
[340738302,1729759846574,-160.0,0.00064616,120]
[340738303,1729759846586,-514.37,0.0006465,120]
[340738304,1729759846595,-523.25,0.0006465,120]
[340738305,1729759846604,-500.0,0.0006465,120]
[340738306,1729759846613,-2954.3327,0.00064779,2]
[340738307,1729759846622,-444.93,0.00064803,2]
[340738308,1729759846631,-500.0,0.0006482,120]
[340738309,1729759846640,-500.0,0.00064984,120]
[340738310,1729759846649,-500.0,0.00064984,120]
[340738311,1729759846658,-500.0,0.00064984,120]
[340738312,1729759846667,-500.0,0.00064984,120]
[340738313,1729759846676,-390.88632507,0.00064984,120]
[340738314,1729759846685,-514.37,0.00064985,120]
[340738315,1729759846694,-500.0,0.00064985,120]
[340738316,1729759846703,-523.25,0.00064985,120]
[340738317,1729759846712,-500.0,0.00064985,120]
[340738318,1729759846723,-514.37,0.00064988,120]
[340738319,1729759846732,-514.37,0.00064988,120]
[340738320,1729759846741,-514.37,0.00064988,120]
[340738321,1729759846751,-514.37,0.00064988,120]
[340738322,1729759846760,-514.37,0.00064988,120]
[340738323,1729759846769,-514.37,0.00064988,120]
[340738324,1729759846779,-514.37,0.00064988,120]
[340738325,1729759846788,-514.37,0.00064988,120]
[340738326,1729759846798,-500.0,0.00064988,120]
[340738327,1729759846807,-500.0,0.00064988,120]
[340738328,1729759846816,-500.0,0.00064988,120]
[340738329,1729759846825,-269.1608674,0.00064988,120]
[340738330,1729759846834,-523.25,0.00064988,120]
[340738331,1729759846843,-523.25,0.00064988,120]
[340738332,1729759846852,-523.25,0.00064988,120]
[340738333,1729759846862,-523.25,0.00064988,120]
[340738334,1729759846871,-523.25,0.00064988,120]
[340738335,1729759846880,-523.25,0.00064988,120]
[340738336,1729759846889,-523.25,0.00064988,120]
[340738337,1729759846899,-523.25,0.00064988,120]
[340738338,1729759846908,-500.0,0.00064988,120]
[340738339,1729759846917,-500.0,0.00064988,120]
[340738340,1729759846926,-511.66615935,0.00064988,120]
[340738341,1729759846935,-514.37,0.00064989,120]
[340738342,1729759846944,-514.37,0.00064989,120]
[340738343,1729759846953,-514.37,0.00064989,120]
[340738344,1729759846962,-514.37,0.00064989,120]
[340738345,1729759846973,-514.37,0.00064989,120]
[340738346,1729759846982,-523.25,0.00064989,120]
[340738347,1729759846991,-523.25,0.00064989,120]
[340738348,1729759846999,-523.25,0.00064989,120]
[340738349,1729759847008,-523.25,0.00064989,120]
[340738350,1729759847018,-523.25,0.00064989,120]
[340738351,1729759847027,-152.85,0.00065123,2]
[340738352,1729759847036,-514.37,0.00065439,120]
[340738353,1729759847045,-514.37,0.00065439,120]
[340738354,1729759847054,-514.37,0.00065439,120]
[340738355,1729759847063,-514.37,0.00065439,120]
[340738356,1729759847072,-514.37,0.00065439,120]
[340738357,1729759847081,-514.42669549,0.00065439,120]
[340738358,1729759847090,-523.25,0.00065439,120]
[340738359,1729759847099,-523.25,0.00065439,120]
[340738360,1729759847108,-523.25,0.00065439,120]
[340738361,1729759847117,-523.25,0.00065439,120]
[340738362,1729759847126,-523.25,0.00065439,120]
[340738363,1729759847135,-523.30745221,0.00065439,120]
[340738364,1729759847144,-158.09,0.00065609,2]
[340738365,1729759847153,-158.09,0.00065639,2]
[340738366,1729759847162,-158.09,0.00065669,2]
[340738367,1729759847171,-158.09,0.00065699,2]
[340738368,1729759847180,-158.09,0.00065729,2]
[340738369,1729759847189,-158.09,0.00065758,2]
[340738370,1729759847198,-158.09,0.00065788,2]
[340738371,1729759847207,-158.09,0.00065818,2]
[340738372,1729759847216,-158.09,0.00065848,2]
[340738373,1729759847226,-158.09,0.00065878,2]
[340738374,1729759847236,-158.09,0.00065908,2]
[340738375,1729759847245,-158.09,0.00065937,2]
[340738376,1729759847254,-2438.0,0.00066281,30]
[340738377,1729759847263,-444.93,0.00067067,2]
[340738378,1729759847272,-2500.0,0.000677,2]
[340738379,1729759847281,-190.48,0.0006779,120]
[340738380,1729759847290,-6000.0,0.000678,120]
[340738381,1729759847299,-2363.802,0.000678,120]
[340738382,1729759847309,-8148.3257,0.000679,2]
[340738383,1729759847318,-2078.54,0.00067999,120]
[340738384,1729759847327,-24522.5471515,0.00068,57]
[340738385,1729759847339,-25477.4528485,0.00068,57]
[340738386,1729759847349,-1518.0,0.00068,2]
[340738387,1729759847358,-430.25,0.00068767,120]
[340738388,1729759847367,-430.25,0.00068767,120]
[340738389,1729759847376,-430.25,0.00068767,120]
[340738390,1729759847385,-430.25,0.00068767,120]
[340738391,1729759847394,-312.37095515,0.00068889,28]
[340738392,1729759847403,-7500.0,0.000689,120]
[340738393,1729759847412,-2579.70281508,0.0006898,16]
[340738394,1729759847423,-12797.86884762,0.0006898,16]
[340738395,1729759847432,-904.56303898,0.00068989,16]
[340738396,1729759847441,-2078.54,0.00068989,120]
[340738397,1729759847450,-904.56303898,0.0006899,16]
[340738398,1729759847459,-177.66837532,0.0006899,7]
[340738399,1729759847468,-500.0,0.00068999,120]
[340738400,1729759847477,-500.0,0.00068999,120]
[340738401,1729759847487,-500.0,0.00068999,120]
[340738402,1729759847496,-2078.54,0.00068999,120]
[340738403,1729759847505,-2078.54,0.00068999,120]
[340738404,1729759847514,-36853.5836991,0.00069,59]
[340738405,1729759847525,-13146.4163009,0.00069,59]
[340738406,1729759847534,-1455.09438519,0.00069,14]
[340738407,1729759847545,-3544.90561481,0.00069,14]
[340738408,1729759847554,-12500.0,0.00069,120]
[340738409,1729759847563,-20875.531863,0.00069,120]
[340738410,1729759847576,-38444.31082392,0.00069,120]
[340738411,1729759847588,-703.7,0.00069,120]
[340738412,1729759847610,-291.03981636,0.00069,120]
[340738415,1729760068255,150.0,0.00015342,2]
[340738416,1729760068277,7.56,0.00015342,2]
[340738417,1729760581932,150.0,0.00019725,2]
[340738418,1729760581954,150.0,0.00019725,2]
[340738419,1729760640556,150.0,0.00015342,2]
[340738420,1729760640576,11.04,0.00015342,2]
[340738421,1729760731164,-279.0,0.000372,2]
[340738422,1729760731185,-151.0,0.00052,120]
[340738423,1729760731205,-760.14231778,0.000563,7]
[340738424,1729760750101,-425.92897312,0.000563,7]
[340738425,1729760761361,150.0,0.00019725,2]
[340738426,1729760761382,150.0,0.00019725,2]
[340738427,1729760774632,150.0,0.0001726,2]
[340738428,1729760821535,150.0,0.00019725,2]
[340738429,1729760821557,150.0,0.00019725,2]
[340738430,1729760841130,-191.0,0.00021484,2]
[340738431,1729760841150,-843.14815751,0.00055,120]
[340738432,1729760877040,150.0,0.0001726,2]
[340738435,1729760938971,150.0,0.0001726,2]
[340738440,1729761032281,-5.9587091,0.000563,7]
[340738441,1729761032292,-909.33837036,0.000566,12]
[340738442,1729761032314,-487.66162964,0.000566,12]
[340738443,1729761032323,-261.43837036,0.000567,117]
[340738444,1729761032398,-263.99149982,0.000567,117]
[340738445,1729761032409,-2282.62216019,0.000567,117]
[340738446,1729761032419,-252.8748098,0.000567,2]
[340738447,1729761032429,-411.08177194,0.000568,2]
[340738448,1729761032440,-335.425,0.000568,2]
[340738449,1729761033005,-449.52964897,0.000568,2]
[340738450,1729761033015,-500.0,0.00059489,120]
[340738451,1729761033025,-915.71,0.00059589,30]
[340738452,1729761033035,-3274.81,0.00059589,30]
[340738453,1729761033046,-151.0,0.00059589,120]
[340738454,1729761033056,-1118.0,0.000618,101]
[340738455,1729761033065,-299.99,0.000618,120]
[340738456,1729761033075,-776.307,0.00062212,120]
[340738457,1729761033084,-1151.0,0.00062212,120]
[340738458,1729761033094,-893.38347221,0.00062509,120]
[340738459,1729761033103,-522.21,0.00062525,2]
[340738460,1729761033113,-171.59399978,0.00064,120]
[340738461,1729761033123,-6087.17,0.00064675,14]
[340738462,1729761033133,-170.43,0.00064761,2]
[340738463,1729761033142,-522.21,0.00064789,2]
[340738464,1729761033152,-658.621,0.00064888,120]
[340738465,1729761033163,-300.0,0.00064888,12]
[340738466,1729761033172,-24788.27168569,0.00064889,2]
[340738467,1729761033184,-3834.18185265,0.00064889,2]
[340738468,1729761033207,-98.37726719,0.00064889,2]
[340738469,1729761033218,-5945.57433358,0.00064889,2]
[340738470,1729761033230,-8234.1906079,0.00064889,2]
[340738471,1729761033242,-655.60712406,0.00064889,2]
[340738472,1729761033255,-1571.99124699,0.00064889,2]
[340738473,1729761033266,-340.28165674,0.00064889,2]
[340738479,1729761038344,-569.5689955,0.00059589,2]
[340738481,1729761038405,-3291.29190226,0.00059589,2]
[340738482,1729761038415,-500.0,0.0006225,2]
[340738483,1729761038424,-500.0,0.0006362,2]
[340738484,1729761038433,-9542.7151252,0.00064889,2]
[340738485,1729761038443,-250.0,0.00064999,120]
[340738486,1729761038453,-12218.77324271,0.00065,120]
[340738487,1729761038464,-5973.38695961,0.00065,120]
[340738488,1729761038474,-250.0,0.00065026,120]
[340738489,1729761038483,-23900.0,0.00065132,2]
[340738490,1729761038493,-1000.0,0.0006612,120]
[340738491,1729761038504,-152.0,0.00066785,3]
[340738492,1729761038514,-522.21,0.00067053,2]
[340738493,1729761038524,-151.0,0.00067178,120]
[340738494,1729761038541,-1095.3374015,0.0006762,120]
[340738495,1729761038551,-1083.09870892,0.0006762,120]
[340738496,1729761038561,-1093.99535588,0.0006762,120]
[340738497,1729761038570,-6000.0,0.000678,120]
[340738498,1729761038580,-4878.34,0.000678,120]
[340738499,1729761038590,-1049.66,0.00067999,120]
[340738500,1729761038599,-1049.66,0.00067999,120]
[340738501,1729761038608,-1049.66,0.00067999,120]
[340738502,1729761038617,-500.0,0.00067999,120]
[340738503,1729761038627,-12500.0,0.00068,120]
[340738504,1729761038636,-7202.0268,0.0006805,2]
[340738505,1729761038646,-2415.62358011,0.000681,15]
[340738506,1729761038655,-12500.0,0.0006815,120]
[340738507,1729761038663,-1202.0218,0.000682,2]
[340738508,1729761038672,-12500.0,0.000683,120]
[340738509,1729761038682,-11919.15,0.0006845,120]
[340738510,1729761038691,-6000.0,0.000685,120]
[340738511,1729761038701,-4878.34,0.000685,120]
[340738512,1729761038712,-265.65403612,0.00068666,120]
[340738513,1729761038722,-838.56,0.00068666,120]
[340738514,1729761038731,-838.56,0.00068667,120]
[340738515,1729761038741,-699.11,0.00068667,120]
[340738516,1729761038750,-664.64,0.00068667,120]
[340738517,1729761038759,-500.0,0.00068733,15]
[340738518,1729761038768,-500.0,0.00068733,15]
[340738519,1729761038777,-6000.0,0.000688,120]
[340738520,1729761038788,-4878.339999,0.000688,120]
[340738521,1729761038798,-2500.0,0.000688,2]
[340738522,1729761038807,-170.44626746,0.0006889,30]
[340738543,1729761039028,-829.55373254,0.0006889,30]
[340738545,1729761039038,-281.57210189,0.00068899,120]
[340738547,1729761039049,-399.27525016,0.00068899,120]
[340738548,1729761039064,-313.38007676,0.00068899,28]
[340738550,1729761039072,-308.71287795,0.00068899,2]
[340738552,1729761039082,-2.41065692,0.00068899,120]
[340738554,1729761039093,-1036.75896052,0.00068899,120]
[340738557,1729761039104,-324.20361251,0.00068899,120]
[340738559,1729761039115,-368.73677005,0.00068899,120]
[340738561,1729761039124,-11466.76104107,0.000689,2]
[340738563,1729761039134,-313.999999,0.000689,2]
[340738565,1729761039146,-3371.640368,0.000689,2]
[340738687,1729761040424,-1382.73039193,0.000689,2]
[340738688,1729761040435,-7713.91333921,0.000689,2]
[340738689,1729761040446,-8947.21879473,0.000689,2]
[340738690,1729761040457,-5133.18816606,0.000689,2]
[340738691,1729761040466,-3810.59569856,0.000689,2]
[340738692,1729761040477,-9077.54866152,0.000689,2]
[340738693,1729761040488,-6424.12253992,0.000689,2]
[340738695,1729761040497,-2519.71769497,0.000689,120]
[340738697,1729761040508,-671.66,0.000689,120]
[340738713,1729761040650,-2808.62230503,0.000689,120]
[340738715,1729761040659,-1201.07501136,0.000689,120]
[340738717,1729761040673,-816.98597974,0.000689,120]
[340738719,1729761040684,-1700.14929995,0.000689,120]
[340738722,1729761040697,-1160.12970795,0.000689,120]
[340738723,1729761040706,-246.85981187,0.0006898,120]
[340738783,1729761043692,-203.339009,0.00068899,40]
[340738784,1729761043702,-320.84213016,0.0006898,120]
[340738786,1729761043711,-503.02680699,0.0006898,120]
[340738788,1729761043721,-504.71955812,0.0006898,120]
[340738790,1729761043730,-410.63114,0.0006898,120]
[340738792,1729761043740,-606.69,0.0006898,120]
[340738793,1729761043749,-500.0,0.0006898,120]
[340738794,1729761043758,-601.95918303,0.0006898,120]
[340738795,1729761043768,-500.0,0.0006898,120]
[340738796,1729761043778,-199.999999,0.00068989,120]
[340738797,1729761043788,-1049.66,0.00068989,120]
[340738798,1729761043797,-500.0,0.00068989,120]
[340738799,1729761043808,-351.572826,0.00068989,31]
[340738800,1729761043818,-558.9040677,0.00068989,16]
[340738801,1729761043830,-8913.5378235,0.00068989,16]
[340738802,1729761043846,-3657.5704422,0.00068989,16]
[340738803,1729761043856,-6638.62104549,0.0006899,61]
[340738804,1729761043891,-299.12922981,0.0006899,61]
[340738805,1729761043916,-652.30821851,0.0006899,61]
[340738806,1729761044030,-2524.48315042,0.0006899,61]
[340738813,1729761046710,-6932.90777461,0.0006899,61]
[340738815,1729761046721,-32291.57796162,0.0006899,61]
[340738817,1729761046730,-196950.185001,0.0006899,16]
[340738819,1729761046739,-1049.66,0.00068999,120]
[340738821,1729761046748,-1049.66,0.00068999,120]
[340738823,1729761046757,-1049.66,0.00068999,120]
[340738825,1729761046766,-1049.66,0.00068999,120]
[340738827,1729761046775,-500.0,0.00068999,120]
[340738828,1729761046784,-500.0,0.00068999,120]
[340738830,1729761046793,-606.69,0.00068999,120]
[340738833,1729761046803,-606.69,0.00068999,120]
[340738834,1729761046812,-500.0,0.00068999,120]
[340738836,1729761046822,-500.0,0.00068999,120]
[340738838,1729761046831,-500.0,0.00068999,120]
[340738840,1729761046839,-500.0,0.00068999,120]
[340738842,1729761046850,-1732.11,0.00068999,120]
[340738844,1729761046859,-1732.11,0.00068999,120]
[340738846,1729761046869,-1732.11,0.00068999,120]
[340738848,1729761046879,-1348.0,0.00069,60]
[340738851,1729761046891,-439685.41749672,0.00069,120]
[340738853,1729761046901,-522.21,0.00069317,2]
[340738855,1729761046910,-167.0,0.00069435,2]
[340738857,1729761046919,-683.3546,0.00069567,2]
[340738859,1729761046928,-313.38007669,0.00069835,28]
[340738861,1729761046937,-253.34333658,0.0006987,90]
[340738863,1729761046946,-201.40977317,0.0006987,90]
[340738865,1729761046955,-160.81910108,0.00069899,51]
[340738866,1729761046964,-7500.0,0.000699,120]
[340738868,1729761046973,-169.8056535,0.000699,120]
[340738870,1729761046982,-300.02092823,0.000699,2]
[340738872,1729761046991,-16640.4680922,0.00069952,6]
[340738874,1729761047000,-13496.2934286,0.00069952,6]
[340738876,1729761047009,-549.76940861,0.00069952,6]
[340738878,1729761047022,-645.49725698,0.00069952,6]
[340738881,1729761047034,-262.21999992,0.00069952,6]
[340738883,1729761047046,-3347.725,0.00069952,6]
[340738886,1729761047062,-536.58367,0.00069952,6]
[340738888,1729761047076,-5010.32342949,0.00069952,6]
[340738890,1729761047085,-1883.21112423,0.00069952,6]
[340738927,1729761061970,150.0,0.00019725,2]
[340738928,1729761061994,150.0,0.00019725,2]
[340738929,1729761123602,150.0,0.00019725,2]
[340738930,1729761123628,150.0,0.00019725,2]
[340738931,1729761142593,150.0,0.0001,2]
[340738932,1729761142613,100.0,0.0001,2]
[340738933,1729761173794,150.0,0.00015342,2]
[340738934,1729761173815,29.71,0.00015342,2]
[340738935,1729761707576,159.3,0.00015342,2]
[340738937,1729761920254,715.00717414,9e-05,2]
[340738938,1729761930229,4664.88865864,0.000101,2]
[340738939,1729761937402,2250.0,9e-05,2]
[340738940,1729761957211,1200.0,6.94e-05,2]
[340738941,1729761964344,161.46924233,9e-05,2]
[340738942,1729762025094,-500.0,0.00054795,120]
[340738943,1729762025116,-495.9683751,0.00054795,2]
[340738944,1729762025139,-27.04689573,0.00056699,9]
[340738945,1729762039689,205.0,9.8e-05,2]
[340738951,1729762118011,212.34561259,0.0001,2]
[340738952,1729762121872,467.39052453,0.0002,10]
[340738954,1729762125055,254.63867382,0.000107,2]
[340738963,1729762231548,-402.43381049,0.00022,5]
[340738964,1729762231558,-3136.14167639,0.00042212,5]
[340738965,1729762231664,-476.09994262,0.00042212,5]
[340738966,1729762232014,910.0,0.00015,10]
[340738969,1729762237648,-580.5753858,0.00042212,5]
[340738970,1729762237793,-816.88903073,0.00042212,5]
[340738971,1729762237802,-250.9389568,0.0004988,2]
[340738972,1729762237812,-1455.90941248,0.0004998,120]
[340738973,1729762237964,-14409.65627092,0.0004998,120]
[340738974,1729762237973,-5072.65527916,0.000543,120]
[340738978,1729762239602,-647.59479966,0.000543,120]
[340738979,1729762239613,-1834.89049351,0.000543,120]
[340738995,1729762242588,-394.310675,0.000543,120]
[340738996,1729762242707,-130846.689325,0.000543,120]
[340738997,1729762242717,-500.0,0.00054795,120]
[340738998,1729762242726,-500.0,0.000554,2]
[340738999,1729762242735,-11524.0,0.00056,120]
[340739000,1729762242744,-11524.0,0.000578,120]
[340739001,1729762242752,-203.78,0.00058725,30]
[340739002,1729762242763,-150.99,0.000606,30]
[340739003,1729762242774,-5285.52,0.000606,2]
[340739004,1729762242783,-999.99,0.000606,10]
[340739005,1729762242792,-2290.20431592,0.000609,15]
[340739006,1729762242801,-874.01,0.00061,5]
[340739007,1729762242811,-526.897,0.00061599,120]
[340739008,1729762242820,-556.28,0.00061599,2]
[340739009,1729762242831,-1546.0,0.000619,101]
[340739010,1729762242842,-2290.20431583,0.00063574,15]
[340739011,1729762242852,-1000.0,0.00063842,120]
[340739012,1729762242861,-458.56,0.00064202,2]
[340739013,1729762242872,-200.0,0.00064837,120]
[340739014,1729762242882,-181.55,0.0006531,120]
[340739015,1729762242892,-2500.0,0.00065501,2]
[340739016,1729762242905,-170.43,0.0006557,2]
[340739017,1729762242915,-4807.48679334,0.00065601,2]
[340739018,1729762242942,-2524.48315042,0.00065601,2]
[340739034,1729762245474,-669.38,0.000578,2]
[340739037,1729762245588,-12215.94264183,0.000578,2]
[340739038,1729762245599,-500.8939573,0.00065601,2]
[340739039,1729762245611,-269.4349934,0.00065601,2]
[340739040,1729762245623,-1113.70970627,0.00065601,2]
[340739041,1729762245635,-535.00001144,0.00065601,2]
[340739042,1729762245655,-3346.38927141,0.00065601,2]
[340739043,1729762245730,-5078.09285614,0.00065601,2]
[340739044,1729762255826,150.0,0.0001726,2]
[340739045,1729762321213,236.718,0.0001452,2]
[340739046,1729762321467,236.718,0.0001452,2]
[340739047,1729762321659,236.718,0.0001452,2]
[340739048,1729762321900,236.718,0.0001452,2]
[340739049,1729762322134,236.718,0.0001452,2]
[340739050,1729762322325,236.718,0.0001452,2]
[340739051,1729762322589,236.718,0.0001452,2]
[340739052,1729762322798,236.718,0.0001452,2]
[340739053,1729762322993,236.718,0.0001452,2]
[340739054,1729762323177,236.718,0.0001452,2]
[340739055,1729762342330,164.99,0.00015342,2]
[340739056,1729762443961,-172.32534949,0.0003625,2]
[340739057,1729762443986,-3000.0,0.0003634,2]
[340739058,1729762444012,-2999.98,0.0003635,2]
[340739059,1729762444038,-3000.0,0.00036354,2]
[340739060,1729762444062,-3000.0,0.00036364,2]
[340739061,1729762444086,-3000.0,0.00036375,2]
[340739062,1729762444113,-1161.49,0.00036402,2]
[340739063,1729762452513,180.36142336,0.000364,2]
[340739064,1729762461685,-164.99,0.0005589,2]
[340739065,1729762461709,-13503.98399002,0.00059,120]
[340739066,1729762461734,-1041.189217,0.000596,118]
[340739067,1729762461758,-2000.0,0.000596,118]
[340739068,1729762461782,-2022.507034,0.0005961,118]
[340739069,1729762469814,150.0,0.00060001,2]
[340739070,1729762469834,6.39623949,0.00060001,2]
[340739071,1729762470013,143.60376051,0.00060001,2]
[340739072,1729762470038,10.27315766,0.00060001,2]
[340739073,1729762473960,-502.813379,0.000601,120]
[340739074,1729762473986,-150.0,0.000631,2]
[340739075,1729762474012,-153.0,0.00063825,120]
[340739076,1729762474037,-153.0,0.00063825,120]
[340739077,1729762474062,-153.0,0.00063825,120]
[340739078,1729762474087,-153.0,0.00063825,120]
[340739079,1729762474116,-153.0,0.00063825,120]
[340739080,1729762474140,-153.0,0.00063825,120]
[340739081,1729762474164,-153.0,0.00063825,120]
[340739082,1729762474188,-2332.86,0.00063825,2]
[340739083,1729762474223,-3510.7,0.00063825,2]
[340739084,1729762474253,-153.0,0.00063831,120]
[340739085,1729762474278,-153.0,0.00063831,120]
[340739086,1729762474304,-153.0,0.0006384,120]
[340739087,1729762474329,-153.0,0.0006384,120]
[340739088,1729762474354,-153.0,0.0006384,120]
[340739089,1729762474378,-500.0,0.00063842,30]
[340739090,1729762474402,-502.813379,0.000639,120]
[340739091,1729762474426,-5560.06692868,0.0006495,2]
[340739092,1729762475246,209.0,0.000376,2]
[340739093,1729762475814,1044.0,0.00057,12]
[340739094,1729762475977,834.0,0.000619,101]
[340739095,1729762479410,150.0,0.00058801,30]
[340739096,1729762479432,150.0,0.00058801,30]
[340739097,1729762479453,150.0,0.00058801,30]
[340739098,1729762479478,150.0,0.00058801,30]
[340739099,1729762479498,150.0,0.00058801,30]
[340739100,1729762479519,150.0,0.00058801,30]
[340739101,1729762479540,150.0,0.00058801,30]
[340739102,1729762479561,69.04546664,0.00058801,30]
[340739103,1729762480070,80.95453336,0.00063842,120]
[340739104,1729762480093,119.04546664,0.00063842,120]
[340739105,1729762500115,8017.74631332,0.00014,2]
[340739106,1729762500145,6267.32975898,0.00014,2]
[340739107,1729762500170,25000.0,0.00014,2]
[340739108,1729762500198,24819.63857664,0.00014,2]
[340739109,1729762500227,25000.0,0.00014,2]
[340739110,1729762500253,8666.20465051,0.00014,2]
[340739111,1729762500280,25000.0,0.00014,2]
[340739112,1729762500308,25000.0,0.00014,2]
[340739113,1729762500335,25000.0,0.00014,2]
[340739114,1729762500358,28867.79011395,0.00014,2]
[340739115,1729762500382,3400.0,0.00014,2]
[340739116,1729762500409,5902844.00236185,0.00014,2]
[340739117,1729762842842,153.49,0.00015342,2]
[340739118,1729762851802,150.0,0.00019178,2]
[340739119,1729762851823,11.82,0.00019178,2]
[340739120,1729762945029,250.0,0.0001,2]
[340739121,1729762946129,300.0,0.00012,2]
[340739122,1729762947297,350.0,0.00014,2]
[340739123,1729762948340,400.0,0.00016,2]
[340739124,1729762949437,450.0,0.00018,2]
[340739125,1729762950527,181.51,0.0002,2]
[340739126,1729762950547,318.49,0.0002,2]
[340739127,1729763242146,-550.0,0.00022,2]
[340739128,1729763242168,-600.0,0.00024,2]
[340739129,1729763242191,-178.02215368,0.00026,2]
[340739130,1729763285945,-471.97784632,0.00026,2]
[340739131,1729763285970,-700.0,0.00028,2]
[340739132,1729763285992,-750.0,0.0003,2]
[340739133,1729763286013,-800.0,0.00032,2]
[340739134,1729763286034,-172.20207513,0.00032877,2]
[340739135,1729763286055,-664.15,0.00032877,10]
[340739136,1729763286075,-5503.64,0.00032877,2]
[340739137,1729763286095,-850.0,0.00034,2]
[340739138,1729763286116,-150.0,0.00034548,10]
[340739139,1729763286137,-900.0,0.00036,2]
[340739140,1729763286158,-950.0,0.00038,2]
[340739141,1729763286179,-215.257,0.0004,120]
[340739142,1729763286201,-1000.0,0.0004,2]
[340739143,1729763286227,-503.152841,0.000402,38]
[340739144,1729763286249,-500.0,0.000412,38]
[340739145,1729763286270,-1050.0,0.00042,2]
[340739146,1729763286291,-500.0,0.000422,38]
[340739147,1729763286312,-1100.0,0.00044,2]
[340739148,1729763286333,-528.0,0.00048347,4]
[340739149,1729763286354,-15388.69,0.00048348,2]
[340739150,1729763286375,-151.39881193,0.00054962,12]
[340739151,1729763286396,-649.0,0.00058,120]
[340739152,1729763286416,-2751.0,0.0005965,120]
[340739153,1729763286437,-816.93250539,0.00059999,12]
[340739154,1729763286461,-10763.93926413,0.0006,120]
[340739155,1729763286483,-433.0,0.0006,120]
[340739156,1729763286504,-310.47917394,0.0006,120]
[340739157,1729763286525,-150.41,0.000609,120]